{"text_format":"1","workbook":"xlsx","n_sheets":5,"sheets":["Cover","Contents","1. F-Factor summary","2. Individual fire start info","3. Systems and Audit"],"not_rendered":{"charts":0,"images":2,"macros":1,"external_links":2,"defined_names":97,"comments":0,"pivot_tables":0},"unopened":[],"bounds":{"document_bytes":16777216,"sheet_cells":100000,"rows_first":2000,"rows_last":500,"rows_between":2000,"halvings":0,"cell_chars":16384,"cell_head_chars":4096},"cells_cut":0,"cells_raw":0,"read":"whole","date_system":"1900"}

{"sheet":"Cover","index":0,"n_rows":47,"n_cols":6,"rows_kept":47,"cut":false,"hidden":false,"merged":[[10,0,11,8],[12,0,12,8],[15,0,15,8],[14,0,14,8],[13,0,13,8],[46,1,46,5],[40,1,40,2],[40,3,40,6],[44,1,44,5],[45,1,45,5],[36,1,36,2],[36,3,36,6],[39,1,39,2],[39,3,39,6],[17,0,17,8],[35,1,35,2],[35,3,35,6],[30,2,30,4],[28,2,28,4],[24,2,24,4],[24,0,24,1],[26,2,26,4],[29,2,29,4],[18,0,18,8],[19,0,19,8],[20,0,23,8]]}
[]
[]
[]
[]
[]
[]
[]
["Distribution Network Service Provider"]
["Fire start report"]
[]
["This template is to be used by a DNSP to provide a fire start report to the AER in accordance with section 5 of the F-factor Order in Council.  "]
[]
["Colour coding of input sheets:"]
["Dark blue = AER headings"]
["Grey = AER instructions"]
["Yellow = Input cells"]
["Light orange = Automatically-generated cells"]
[]
["Leave coloured cells blank if no information exists - PLEASE DO NOT ENTER TEXT unless specifically requested to do so."]
["All dollar amounts are to be unrounded, and in nominal terms."]
[]
[]
[]
[]
["DNSP:",null,"United Energy"]
[]
["DNSP - trading name:",null,"United Energy Distribution Pty Ltd"]
[]
["DNSP - Australian business number: ",null,"70 064 651 029"]
[]
["Reporting year:",null,"2016/17"]
[]
[]
[]
[]
["Business address","Address",null,"43 - 45 Centreway"]
[null,"Suburb",null,"Mt Waverley"]
[null,null,"State","Victoria","Postcode",3149]
[]
["Postal address","Address",null,"P.O Box 449"]
[null,"Suburb",null,"Mt Waverley"]
[null,null,"State","Victoria","Postcode",3149]
[]
[]
["Contact name/s","Trevor Fisher"]
["Contact phone/s",418993821]
["Contact email address/s","trevor.fisher@ue.com.au"]

{"sheet":"Contents","index":1,"n_rows":12,"n_cols":8,"rows_kept":12,"cut":false,"hidden":false,"merged":[[2,4,2,10]]}
[" "]
[]
[null,null,null,null,"Electricity Distribution Network Service Provider    F-factor Reporting Template"]
[]
[null,null,null,null,null,null,null,"Table of contents"]
[]
[]
[null,null,"Cover sheet",null,null,"2. Fire start report"]
[]
[]
[]
[null,null,"1. F-factor summary",null,null,"3. Systems and Audit"]

{"sheet":"1. F-Factor summary","index":2,"n_rows":147,"n_cols":15,"rows_kept":147,"cut":false,"hidden":false,"merged":[[23,1,23,2],[7,1,11,1],[15,1,19,1],[4,1,4,2],[3,6,3,8],[4,6,4,8],[5,6,5,8],[12,1,14,1],[5,3,6,3]]}
[null,{"$f":"IF(Cover!C25=\"\",\"[DNSP Name]\", Cover!C25)","v":"United Energy"},"IRU target:",{"$f":"IF(SUM(K6:O6)=0,\"\",SUM(K6:O6))","v":22.3},null,null,null,null,null,null,"AusNet Services","CitiPower","Jemena","Powercor","United Energy"]
[null,"F-factor data reporting","IRU amount:",{"$f":"IF(SUM('2. Individual fire start info'!U39:U118)=0,\"\",SUM('2. Individual fire start info'!U39:U118))","v":7.3399999999999972},null,null,null,null,null,"2016/17",247.7,3.4,9.6999999999999993,468,22.3]
[null,{"$f":"IF(Cover!C31=\"\",\"[Year]\",Cover!C31)","v":"2016/17"},"Revenue adjustment:",{"$f":"IF(OR(D1=\"\",D2=\"\"),\"\",15000*(D1-D2))","v":224400.00000000006},null,null,null,null,null,"2017/18",247.7,3.4,9.6999999999999993,468,22.3]
[null,"Table 1: Summary of total fire starts",null,null,null,null,null,null,null,"2018/19",247.7,3.4,9.6999999999999993,468,22.3]
[null,"This is a summary of data in worksheet \"2. Fire Start Report\"",null,null,null,null,null,null,null,"2019/20",221.1,3.4,9.6999999999999993,412.8,22.3]
[null,null,null,"Total fires by category",null,null,null,null,null,null,{"$f":"IF(OR($B3=\"[Year]\",$B1=\"[DNSP Name]\",$B1<>K1),\"\",LOOKUP($B3,$J2:$J5,K2:K5))","v":""},{"$f":"IF(OR($B3=\"[Year]\",$B1=\"[DNSP Name]\",$B1<>L1),\"\",LOOKUP($B3,$J2:$J5,L2:L5))","v":""},{"$f":"IF(OR($B3=\"[Year]\",$B1=\"[DNSP Name]\",$B1<>M1),\"\",LOOKUP($B3,$J2:$J5,M2:M5))","v":""},{"$f":"IF(OR($B3=\"[Year]\",$B1=\"[DNSP Name]\",$B1<>N1),\"\",LOOKUP($B3,$J2:$J5,N2:N5))","v":""},{"$f":"IF(OR($B3=\"[Year]\",$B1=\"[DNSP Name]\",$B1<>O1),\"\",LOOKUP($B3,$J2:$J5,O2:O5))","v":22.3}]
[null,"Fire Start by Category","Fire Start by Asset"]
[null,"Asset failures resulting in grass/vegetation fire","Pole and cross arm failure or Pole and cross arm fire",{"$f":"COUNTIF('2. Individual fire start info'!$K$39:$K$119,'1. F-Factor summary'!$J9)","v":0}]
[null,null,"Oil-filled plant",{"$f":"COUNTIF('2. Individual fire start info'!$K$39:$K$119,'1. F-Factor summary'!$J10)","v":0},null,null,null,null,null,{"$f":"B8&\" : \"&C8","v":"Asset failures resulting in grass/vegetation fire : Pole and cross arm failure or Pole and cross arm fire"}]
[null,null,"HV Fuse",{"$f":"COUNTIF('2. Individual fire start info'!$K$39:$K$119,'1. F-Factor summary'!$J11)","v":2},null,null,null,null,null,{"$f":"B8&\" : \"&C9","v":"Asset failures resulting in grass/vegetation fire : Oil-filled plant"}]
[null,null,"Other Assets",{"$f":"COUNTIF('2. Individual fire start info'!$K$39:$K$119,'1. F-Factor summary'!$J12)","v":9},null,null,null,null,null,{"$f":"B8&\" : \"&C10","v":"Asset failures resulting in grass/vegetation fire : HV Fuse"}]
[null,null,"Any fire triggered by any asset failure caused by Lightning",{"$f":"COUNTIF('2. Individual fire start info'!$K$39:$K$119,'1. F-Factor summary'!$J13)","v":0},null,null,null,null,null,{"$f":"B8&\" : \"&C11","v":"Asset failures resulting in grass/vegetation fire : Other Assets"}]
[null,"Grass/vegetation fires from assets (non-asset failures)","Fire starts in grass/vegetation resulting from animal contact with network assets",{"$f":"COUNTIF('2. Individual fire start info'!$K$39:$K$119,'1. F-Factor summary'!$J14)","v":2},null,null,null,null,null,{"$f":"B8&\" : \"&C12","v":"Asset failures resulting in grass/vegetation fire : Any fire triggered by any asset failure caused by Lightning"}]
[null,null,"Fire starts in grass/vegetation resulting from trees contacting network assets",{"$f":"COUNTIF('2. Individual fire start info'!$K$39:$K$119,'1. F-Factor summary'!$J15)","v":5},null,null,null,null,null,{"$f":"B13&\" : \"&C13","v":"Grass/vegetation fires from assets (non-asset failures) : Fire starts in grass/vegetation resulting from animal contact with network assets"}]
[null,null,"Fire starts in grass/vegetation resulting from other causes (vehicle strikes, vandalism etc)",{"$f":"COUNTIF('2. Individual fire start info'!$K$39:$K$119,'1. F-Factor summary'!$J16)","v":1},null,null,null,null,null,{"$f":"B13&\" : \"&C14","v":"Grass/vegetation fires from assets (non-asset failures) : Fire starts in grass/vegetation resulting from trees contacting network assets"}]
[null,"Asset failures resulting in asset fire (no grass/vegetation fire)","Pole and cross arm fire (including ‘smouldering’ or ‘smoke’)",{"$f":"COUNTIF('2. Individual fire start info'!$K$39:$K$119,'1. F-Factor summary'!$J17)","v":14},null,null,null,null,null,{"$f":"B13&\" : \"&C15","v":"Grass/vegetation fires from assets (non-asset failures) : Fire starts in grass/vegetation resulting from other causes (vehicle strikes, vandalism etc)"}]
[null,null,"Oil-filled plant fire",{"$f":"COUNTIF('2. Individual fire start info'!$K$39:$K$119,'1. F-Factor summary'!$J18)","v":3},null,null,null,null,null,{"$f":"B16&\" : \"&C16","v":"Asset failures resulting in asset fire (no grass/vegetation fire) : Pole and cross arm fire (including ‘smouldering’ or ‘smoke’)"}]
[null,null,"HV Fuse Failure (including ‘hang-ups’ and ‘candling’)",{"$f":"COUNTIF('2. Individual fire start info'!$K$39:$K$119,'1. F-Factor summary'!$J19)","v":3},null,null,null,null,null,{"$f":"B16&\" : \"&C17","v":"Asset failures resulting in asset fire (no grass/vegetation fire) : Oil-filled plant fire"}]
[null,null,"Other Assets",{"$f":"COUNTIF('2. Individual fire start info'!$K$39:$K$119,'1. F-Factor summary'!$J20)","v":39},null,null,null,null,null,{"$f":"B16&\" : \"&C18","v":"Asset failures resulting in asset fire (no grass/vegetation fire) : HV Fuse Failure (including ‘hang-ups’ and ‘candling’)"}]
[null,null,"Any fire triggered by any asset failure caused by Lightning",{"$f":"COUNTIF('2. Individual fire start info'!$K$39:$K$119,'1. F-Factor summary'!$J21)","v":0},null,null,null,null,null,{"$f":"B16&\" : \"&C19","v":"Asset failures resulting in asset fire (no grass/vegetation fire) : Other Assets"}]
[null,"Any other Fire Start","Any additional fires, caused by any asset failure, not reported to the ESV and required to be reported by the f-factor Order",{"$f":"COUNTIF('2. Individual fire start info'!$K$39:$K$119,'1. F-Factor summary'!$J22)","v":0},null,null,null,null,null,{"$f":"B16&\" : \"&C20","v":"Asset failures resulting in asset fire (no grass/vegetation fire) : Any fire triggered by any asset failure caused by Lightning"}]
[null,"Total",null,{"$f":"SUM(D8:D21)","v":78},null,null,null,null,null,{"$f":"B21&\" : \"&C21","v":"Any other Fire Start : Any additional fires, caused by any asset failure, not reported to the ESV and required to be reported by the f-factor Order"}]
[null,"Table 2: Summary of total fire starts by F factor Order definition"]
[null,"This is a summary of data in worksheet \"2. Fire Start Report\""]
[null,"Kind of Fire Start by definition of fire start under clause 5 of F-factor Order","Total fires by cause"]
[null,"Started in or originated from a distribution system",{"$f":"COUNTIF('2. Individual fire start info'!$N$39:$N$119,'1. F-Factor summary'!$B26)","v":65}]
[null,"Started by any tree, or part of a tree, falling upon or coming into contact with a distribution system",{"$f":"COUNTIF('2. Individual fire start info'!$N$39:$N$119,'1. F-Factor summary'!$B27)","v":5}]
[null,"Started by any person, bird, reptile or other animal coming into contact with a distribution system",{"$f":"COUNTIF('2. Individual fire start info'!$N$39:$N$119,'1. F-Factor summary'!$B28)","v":5},null,null,null,null,null,null,"Overhead conductors"]
[null,"Started by lightning striking a distribution system or a part of a distribution system ",{"$f":"COUNTIF('2. Individual fire start info'!$N$39:$N$119,'1. F-Factor summary'!$B29)","v":0},null,null,null,null,null,null," - overhead conductor (bare; aluminium core steel reinforced)"]
[null,"Started by any other thing forming part of or coming into contact with a distribution system",{"$f":"COUNTIF('2. Individual fire start info'!$N$39:$N$119,'1. F-Factor summary'!$B30)","v":3},null,null,null,null,null,null," - overhead conductor (bare; all aluminium conductor)"]
[null,"Otherwise started by a distribution system",{"$f":"COUNTIF('2. Individual fire start info'!$N$39:$N$119,'1. F-Factor summary'!$B31)","v":0},null,null,null,null,null,null," - overhead conductor (bare; copper)"]
[null,"Total",{"$f":"SUM(C26:C31)","v":78},null,null,null,null,null,null," - overhead conductor (bare; steel)"]
[null,null,null,null,null,null,null,null,null," - overhead conductor (ABC)"]
[null,null,null,null,null,null,null,null,null," - overhead conductor (covered uninsulated)"]
[null,null,null,null,null,null,null,null,null," - overhead conductor (insulated)"]
[null,null,null,null,null,null,null,null,null,"Service lines"]
[null,null,null,null,null,null,null,null,null," - overhead service conductor (residential)"]
[null,null,null,null,null,null,null,null,null," - overhead service conductor (commercial / industrial)"]
[null,null,null,null,null,null,null,null,null," - overhead service conductor (subdivision / construction)"]
[null,null,null,null,null,null,null,null,null," - overhead service conductor (other)"]
[null,null,null,null,null,null,null,null,null," - underground service cable (residential)"]
[null,null,null,null,null,null,null,null,null," - underground service cable (commercial / industrial)"]
[null,null,null,null,null,null,null,null,null," - underground service cable (subdivision / construction)"]
[null,null,null,null,null,null,null,null,null," - underground service cable (other)"]
[null,null,null,null,null,null,null,null,null,"Underground cables"]
[null,null,null,null,null,null,null,null,null," - underground cable"]
[null,null,null,null,null,null,null,null,null," - underground communications cable"]
[null,null,null,null,null,null,null,null,null,"Poles"]
[null,null,null,null,null,null,null,null,null," - pole (concrete)"]
[null,null,null,null,null,null,null,null,null," - pole (steel)"]
[null,null,null,null,null,null,null,null,null," - pole (wood)"]
[null,null,null,null,null,null,null,null,null,"Crossarms"]
[null,null,null,null,null,null,null,null,null," - crossarm (wood)"]
[null,null,null,null,null,null,null,null,null," - crossarm (steel)"]
[null,null,null,null,null,null,null,null,null," - crossarm (other)"]
[null,null,null,null,null,null,null,null,null,"Overhead assets"]
[null,null,null,null,null,null,null,null,null," - capacity balancing units"]
[null,null,null,null,null,null,null,null,null," - connector / termination"]
[null,null,null,null,null,null,null,null,null," - dropper / bridge"]
[null,null,null,null,null,null,null,null,null," - guy wire"]
[null,null,null,null,null,null,null,null,null," - insulator tie wires / connections"]
[null,null,null,null,null,null,null,null,null," - insulators"]
[null,null,null,null,null,null,null,null,null," - tower"]
[null,null,null,null,null,null,null,null,null," - traction lines"]
[null,null,null,null,null,null,null,null,null,"Underground assets"]
[null,null,null,null,null,null,null,null,null," - LV pillar"]
[null,null,null,null,null,null,null,null,null," - services pit"]
[null,null,null,null,null,null,null,null,null,"Transformers"]
[null,null,null,null,null,null,null,null,null," - transformer (pole mounted)"]
[null,null,null,null,null,null,null,null,null," - transformer (kiosk mounted)"]
[null,null,null,null,null,null,null,null,null," - transformer (ground outdoor mounted)"]
[null,null,null,null,null,null,null,null,null," - transformer (indoor chamber mounted)"]
[null,null,null,null,null,null,null,null,null," - transformer (any other type)"]
[null,null,null,null,null,null,null,null,null," - measurement transformer (current transformer)"]
[null,null,null,null,null,null,null,null,null," - measurement transformer (voltage transformer)"]
[null,null,null,null,null,null,null,null,null," - measurement transformer (capacitive voltage transformer)"]
[null,null,null,null,null,null,null,null,null,"Fuses and switchgear"]
[null,null,null,null,null,null,null,null,null," - fuse (boric acid)"]
[null,null,null,null,null,null,null,null,null," - fuse (EDO fuse)"]
[null,null,null,null,null,null,null,null,null," - fuse (Fault Tamer)"]
[null,null,null,null,null,null,null,null,null," - fuse (powder filled)"]
[null,null,null,null,null,null,null,null,null," - fuse (any other type)"]
[null,null,null,null,null,null,null,null,null," - circuit breaker"]
[null,null,null,null,null,null,null,null,null," - switch (disconnector/isolator)"]
[null,null,null,null,null,null,null,null,null," - switch (earth)"]
[null,null,null,null,null,null,null,null,null," - switch (FuseSaver)"]
[null,null,null,null,null,null,null,null,null," - switch (any other type)"]
[null,null,null,null,null,null,null,null,null,"SCADA, network control and protection systems"]
[null,null,null,null,null,null,null,null,null," - audio frequency load controller (AFLC)"]
[null,null,null,null,null,null,null,null,null," - arc suppresion coil"]
[null,null,null,null,null,null,null,null,null," - automatic circuit recloser (ACR)"]
[null,null,null,null,null,null,null,null,null," - communications linear assets"]
[null,null,null,null,null,null,null,null,null," - communications network assets"]
[null,null,null,null,null,null,null,null,null," - communications site infrastructure"]
[null,null,null,null,null,null,null,null,null," - field devices"]
[null,null,null,null,null,null,null,null,null," - local network wiring assets"]
[null,null,null,null,null,null,null,null,null," - master station assets"]
[null,null,null,null,null,null,null,null,null," - neutral earthing resistor"]
[null,null,null,null,null,null,null,null,null," - oil-filled circuit recloser (OCR)"]
[null,null,null,null,null,null,null,null,null," - rapid earth fault current limiter (REFCL)"]
[null,null,null,null,null,null,null,null,null," - surge diverter"]
[null,null,null,null,null,null,null,null,null," - voltage regulator"]
[null,null,null,null,null,null,null,null,null,"Public lighting"]
[null,null,null,null,null,null,null,null,null," - brackets (major road)"]
[null,null,null,null,null,null,null,null,null," - brackets (minor road)"]
[null,null,null,null,null,null,null,null,null," - lamps (major road)"]
[null,null,null,null,null,null,null,null,null," - lamps (minor road)"]
[null,null,null,null,null,null,null,null,null," - luminaries (major road)"]
[null,null,null,null,null,null,null,null,null," - luminaries (minor road)"]
[null,null,null,null,null,null,null,null,null," - poles / columns (major road)"]
[null,null,null,null,null,null,null,null,null," - poles / columns (minor road)"]
[null,null,null,null,null,null,null,null,null,"Other "]
[null,null,null,null,null,null,null,null,null," - connection box"]
[null,null,null,null,null,null,null,null,null," - earth / earthing"]
[]
[]
[null,null,null,null,null,null,null,null,null,"Extra low voltage AC (<50V)"]
[null,null,null,null,null,null,null,null,null,"Low voltage AC (<1kV)"]
[null,null,null,null,null,null,null,null,null,"2.2kV AC"]
[null,null,null,null,null,null,null,null,null,"6.6kV AC"]
[null,null,null,null,null,null,null,null,null,"11kV AC"]
[null,null,null,null,null,null,null,null,null,"12.7kV AC (SWER)"]
[null,null,null,null,null,null,null,null,null,"22kV AC"]
[null,null,null,null,null,null,null,null,null,"33kV AC"]
[null,null,null,null,null,null,null,null,null,"66kV AC"]
[null,null,null,null,null,null,null,null,null,"132kV AC"]
[null,null,null,null,null,null,null,null,null,"220kV AC"]
[null,null,null,null,null,null,null,null,null,"330kV AC"]
[null,null,null,null,null,null,null,null,null,"500kV AC"]
[null,null,null,null,null,null,null,null,null,"Extra low voltage DC (<120V ripple free)"]
[null,null,null,null,null,null,null,null,null,"Low voltage DC (<1.5kV)"]
[null,null,null,null,null,null,null,null,null,"600V DC"]
[null,null,null,null,null,null,null,null,null,"1500V DC"]
[null,null,null,null,null,null,null,null,null,"Earthing cable"]
[]
[]
[null,null,null,null,null,null,null,null,null,"single wire earth return (SWER)"]
[null,null,null,null,null,null,null,null,null,"single phase"]
[null,null,null,null,null,null,null,null,null,"two phase"]
[null,null,null,null,null,null,null,null,null,"three phase"]
[]
[]
[null,null,null,null,null,null,null,null,null,"Negligible: no ground fire"]
[null,null,null,null,null,null,null,null,null,"Localised: less than 10 sq.m"]
[null,null,null,null,null,null,null,null,null,"Small: 10 - 1000 aq.m"]
[null,null,null,null,null,null,null,null,null,"Medium: 1000 sq.m - 10 ha"]
[null,null,null,null,null,null,null,null,null,"Large: more than 10 ha"]

{"sheet":"2. Individual fire start info","index":3,"n_rows":116,"n_cols":24,"rows_kept":116,"cut":false,"hidden":false,"merged":[[23,0,23,20],[19,0,19,20],[26,0,26,20],[21,0,21,23],[29,0,29,22],[36,10,36,13],[25,0,25,20],[36,21,36,23],[34,0,34,4],[36,14,36,19],[36,2,36,9],[30,0,30,20],[28,0,28,23],[31,0,31,20],[3,24,3,26],[4,24,4,26],[5,24,5,26],[7,0,7,23],[27,0,27,20],[11,0,11,2],[13,0,13,11],[22,0,22,23],[24,0,24,23],[14,0,14,22],[15,0,15,20],[16,0,16,20],[17,0,17,20],[20,0,20,20],[9,0,9,23],[18,0,18,20]]}
[{"$f":"IF(Cover!C25=\"\",\"[DNSP Name]\", Cover!C25)","v":"United Energy"}]
["F-factor data reporting"]
[{"$f":"IF(Cover!C31=\"\",\"[Year]\",Cover!C31)","v":"2016/17"}]
[]
[]
["Instructions:"]
[]
[{"$f":"\"Enter into this worksheet fire start data, from any IT system, which have been recorded by \"&IF(Cover!C25=\"\",\"[DNSP Name]\", Cover!C25)&\". Note that fire starts must be in accordance with the definition of a fire start in the Order In Council.\"","v":"Enter into this worksheet fire start data, from any IT system, which have been recorded by United Energy. Note that fire starts must be in accordance with the definition of a fire start in the Order In Council."}]
[]
["\"Fire\" should be interpreted using its common meaning and can be defined as a process in which substances combine chemically with oxygen from the air and typically give out bright light, heat and smoke. A fire should be recorded where there is evidence of smoking, charring, scorching, burning or any other evidence that a fire had occurred.  "]
[]
[{"$f":"IF(Cover!C25=\"\",\"[DNSP Name] must provide:\", CONCATENATE(Cover!C25,\" must provide:\"))","v":"United Energy must provide:"}]
[]
["Table 3 - Individual Fire Starts"]
["   (1) Date - dd/mm/yyyy"]
["   (2) Time - if known, the 24-hour time of the fire start hh:mm"]
["   (3) Latitude and longitude of the fire start as decimal coordinates"]
["   (4) Asset number for the asset nearest the fire start"]
[{"$f":"\"   (5) Feeder ID for the polyphase overhead line or underground cable nearest the fire start in the \"&A1&\" network\"","v":"   (5) Feeder ID for the polyphase overhead line or underground cable nearest the fire start in the United Energy network"}]
["   (6) Voltage on the line in which the fire start occurred (note: this may not be the nearest polyphase overhead line)"]
["   (7) Network categorisation - CBD, Urban, Rural Long or Rural Short"]
["   (8) Fire start by category in accordance with ESV quarterly reporting categories"]
["   (9) Asset type of primary asset causing fire in accordance with OSIRIS asset categories"]
["   (10) Where the asset involved in the fire is a transformer or an overhead or underground line, provide the phase, or phases, of the line or transformer"]
["   (11) Kind of fire start in accordance with categories specified in Clause 5 of the F-factor Order-In-Council"]
["   (12) Rating of High Bushfire Risk Area (HBRA) or Low Bushfire Risk Are (LBRA) as assigned by CFA & MFB under s.80 of the Electricity Safety Act"]
["   (13) Identify the location of the fire start in accordance with the categories specified in Clause 11(b) of the F-factor Order-In-Council"]
["   (14) Has the CFA declared a fire danger period under the Country Fire Authority Act 1958 - Y/N?"]
["   (15) Where a fire danger period has been declared, provide the daily CFA fire danger rating (or leave blank if the area has not yet been declared)"]
[{"$f":"\"   (16) \"&IF(Cover!C25=\"\",\"[DNSP Name]\", Cover!C25)&\"'s record number for the incident\"","v":"   (16) United Energy's record number for the incident"}]
["   (17) ESV's OSIRIS reference number for the incident"]
["   (18) Free text description of the fault containing relevant comments from field reports "]
[]
[]
["Table 3: Individual Fire Starts"]
[]
["Number",null,"Fire starts",null,null,null,null,null,null,null,"Fire Type",null,null,null,"Risk Factors",null,null,null,null,null,"IRU \namount"]
[null,"Date/Time","Date 1","Time 2","Latitude 3","Longitude 3","ID of \nnearest \nasset 4","ID of nearest \npolyphase \nline 5","Voltage of line in which \nfire start \noccurred 6","Network categorisation 7","Fire start by \nESV category 8","Fire start by\nasset type 9","Phase(s) of \nline or \ntransformer 10","Kind of fire start as per Clause 5\nof F-factor Order-In-Council 11","HBRA or \nLBRA 12","Location \narea 13","Location\nmultiplier","Fire danger period declared? 14","Fire \ndanger \nrating 15","Danger multiplier","Product of multipliers","DNSP record number 16","OSIRIS \n(ESV) reference \nnumber 17","Fault \ndescription 18"]
[1,"2016-07-09T16:23:46","2016-07-09","16:23:46",-37.947556069999997,145.15617810000001,635790,"SV 32","22kV AC","Urban","Grass/vegetation fires from assets (non-asset failures) : Fire starts in grass/vegetation resulting from animal contact with network assets"," - overhead conductor (bare; all aluminium conductor)","three phase","Started by any person, bird, reptile or other animal coming into contact with a distribution system","LBRA",{"$f":"IF(O39=\"LBRA\",\"LBRA only\",\"HBRA only\")","v":"LBRA only"},{"$f":"IF(P39=\"\",\"\",IF(P39=\"LBRA only\",0.2,IF(P39=\"HBRA only\",1,IF(P39=\"within electric line construction area\",19.8,IF(P39=\"within area delineated on plan LEGL./16-354\",4.6,\"\")))))","v":0.2},"N","No forecast",{"$f":"IF(S39=\"\",\"\",IF(S39=\"No forecast\",0.1,IF(S39=\"Low-moderate\",0.2,IF(S39=\"High\",0.5,IF(S39=\"Very high\",1,IF(S39=\"Severe\",2,IF(S39=\"Extreme\",3.5,5)))))))","v":0.1},{"$f":"IF(OR(Q39=\"\",T39=\"\"),\"\",IF(AND(P39=\"within electric line construction area\",S39=\"No forecast\"),1,Q39*T39))","v":2.0000000000000004E-2},4962,"20160711UTD_01","Birds nest on dressing down arm , made with bits of wire . LIS#0635790. Small fire started at base of pole in rubbish. It was extinguished prior to our arrival. "]
[2,"2016-07-11T16:52:20","2016-07-11","16:52:20",-37.952821839999999,145.0119522,1822914,"SR 11","Low voltage AC (<1kV)","Urban","Asset failures resulting in asset fire (no grass/vegetation fire) : Other Assets"," - connector / termination","single phase","Started in or originated from a distribution system","LBRA",{"$f":"IF(O40=\"LBRA\",\"LBRA only\",\"HBRA only\")","v":"LBRA only"},{"$f":"IF(P40=\"\",\"\",IF(P40=\"LBRA only\",0.2,IF(P40=\"HBRA only\",1,IF(P40=\"within electric line construction area\",19.8,IF(P40=\"within area delineated on plan LEGL./16-354\",4.6,\"\")))))","v":0.2},"N","No forecast",{"$f":"IF(S40=\"\",\"\",IF(S40=\"No forecast\",0.1,IF(S40=\"Low-moderate\",0.2,IF(S40=\"High\",0.5,IF(S40=\"Very high\",1,IF(S40=\"Severe\",2,IF(S40=\"Extreme\",3.5,5)))))))","v":0.1},2.0000000000000004E-2,4992,"20160819UTD_01","repaired active service connection to thew street light"]
[3,"2016-07-13T18:30:46","2016-07-13","18:30:46",-37.898888560000003,145.22333069999999,8808747,"MGE21","22kV AC","Urban","Asset failures resulting in asset fire (no grass/vegetation fire) : Other Assets"," - surge diverter","three phase","Started in or originated from a distribution system","LBRA","LBRA only",0.2,"N","No forecast",0.1,2.0000000000000004E-2,4993,"20160819UTD_02","Lis 8808747, LA on B phase found blowen clear. All three cut clear. Notification ##1000537547"]
[4,"2016-07-22T16:45:00","2016-07-22","16:45:00",-38.309373600000001,145.145655,1110545,"HGS22","Low voltage AC (<1kV)","Rural Short","Asset failures resulting in asset fire (no grass/vegetation fire) : Other Assets"," - underground service cable (residential)","three phase","Started in or originated from a distribution system","HBRA","HBRA only",1,"N","No forecast",0.1,0.1,4981,"20160725UTD_02","It was reported that tight bandit tape compressed LV ABC and the shorted - Linesman witness flame on cable"]
[5,"2016-07-26T18:04:29","2016-07-26","18:04:29",-37.800771140000002,145.19234660000001,7067507,"NW 22","Low voltage AC (<1kV)","Urban","Asset failures resulting in asset fire (no grass/vegetation fire) : Other Assets"," - lamps (major road)","single phase","Started in or originated from a distribution system","LBRA","LBRA only",0.2,"N","No forecast",0.1,2.0000000000000004E-2,4986,"20160727UTD_03","Replaced 150 hp sodium head that had caught fire1 pole south of the bridge over eastlink on the east side"]
[6,"2016-07-27T07:58:49","2016-07-27","07:58:49",-38.017502659999998,145.21497890000001,9360948,"DSH31","22kV AC","Urban","Asset failures resulting in asset fire (no grass/vegetation fire) : HV Fuse Failure (including ‘hang-ups’ and ‘candling’)"," - fuse (boric acid)","three phase","Started in or originated from a distribution system","LBRA","LBRA only",0.2,"N","No forecast",0.1,2.0000000000000004E-2,4988,"20160728UTD_02","UE B/A fuse was on fire/out by the time crew arrived, no other damage sustained, fuse fire only. LIS 9360948, Fire Report Ref 01870"]
[7,"2016-08-11T14:25:15","2016-08-11","14:25:15",-37.977707430000002,145.0169621,1811878,"BR 04","Low voltage AC (<1kV)","Urban","Asset failures resulting in asset fire (no grass/vegetation fire) : Other Assets"," - connection box","three phase","Started in or originated from a distribution system","LBRA","LBRA only",0.2,"N","No forecast",0.1,2.0000000000000004E-2,4996,"20160819UTD_04","Replaced burnt out 3ph fmb at lis1811878   fire report 04002 completed as jb had caught fire but had been put out by mfb before crew arrived"]
[8,"2016-08-25T13:04:00","2016-08-25","13:04:00",-37.85054444,145.14668069999999,7040186,"EB 14","Low voltage AC (<1kV)","Urban","Asset failures resulting in asset fire (no grass/vegetation fire) : Other Assets"," - connection box","single phase","Started in or originated from a distribution system","LBRA","LBRA only",0.2,"N","No forecast",0.1,2.0000000000000004E-2,5007,"20160830UTD_01","A faulty UE contactor has started a fire on cust meterboard, crew has isolated supply for safety at pole lis # 7040186, issue defect to cust REC require.  "]
[9,"2016-08-25T22:24:47","2016-08-25","22:24:47",-38.1456011,145.12073649999999,8819378,"FSH31","Low voltage AC (<1kV)","Urban","Asset failures resulting in asset fire (no grass/vegetation fire) : Other Assets"," - lamps (major road)","single phase","Started in or originated from a distribution system","LBRA","LBRA only",0.2,"N","No forecast",0.1,2.0000000000000004E-2,5005,"20160826UTD_02","SL burnt out/caught on fire, cover missing, caused by moisture and salt/corrosion.  Loca SL head/350watt lantern LIS 8819378. "]
[10,"2016-09-04T23:17:00","2016-09-04","23:17:00",-38.170575049999997,145.20383190000001,3301085,"FSH21","Low voltage AC (<1kV)","Rural Short","Asset failures resulting in asset fire (no grass/vegetation fire) : Other Assets"," - connection box","two phase","Started in or originated from a distribution system","HBRA","HBRA only",1,"N","No forecast",0.1,0.1,5013,"20160907UTD_01","At 330 centre rd reports of a fire on pole o/s property, Crew attended and @ Lis 3301085 replaced 3w JB & 3w fmb for UG on serv pole. Possible loose connection"]
[11,"2016-09-13T03:58:00","2016-09-13","03:58:00",-37.767076510000003,145.0866268,7056808,"WD 36","22kV AC","Urban","Asset failures resulting in asset fire (no grass/vegetation fire) : HV Fuse Failure (including ‘hang-ups’ and ‘candling’)"," - fuse (EDO fuse)","three phase","Started in or originated from a distribution system","LBRA",{"$f":"IF(O49=\"LBRA\",\"LBRA only\",\"HBRA only\")","v":"LBRA only"},{"$f":"IF(P49=\"\",\"\",IF(P49=\"LBRA only\",0.2,IF(P49=\"HBRA only\",1,IF(P49=\"within electric line construction area\",19.8,IF(P49=\"within area delineated on plan LEGL./16-354\",4.6,\"\")))))","v":0.2},"N","No forecast",0.1,{"$f":"IF(OR(Q49=\"\",T49=\"\"),\"\",IF(AND(P49=\"within electric line construction area\",S49=\"No forecast\"),1,Q49*T49))","v":2.0000000000000004E-2},5021,"20160914UTD_01 ","EDO Fuse Candled Lis # 7056808 - Tx at WESTMINSTER-SUMMIT"]
[12,"2016-09-21T05:26:30","2016-09-21","05:26:30",-38.364917079999998,145.2037747,8826905,"HGS31","Low voltage AC (<1kV)","Rural Short","Asset failures resulting in asset fire (no grass/vegetation fire) : Other Assets"," - lamps (major road)","single phase","Started in or originated from a distribution system","LBRA","LBRA only",0.2,"N","No forecast",0.1,2.0000000000000004E-2,5030,"20161006UTD_01","CFA advised pole lis # 8826905 correct address is  216 Stony point rd - isolated and replaced 150w sodium street light "]
[13,"2016-09-22T19:32:14","2016-09-22","19:32:14",-37.797343009999999,145.18268269999999,9279455,"NW 13","Low voltage AC (<1kV)","Urban","Asset failures resulting in asset fire (no grass/vegetation fire) : Other Assets"," - lamps (minor road)","single phase","Started in or originated from a distribution system","LBRA","LBRA only",0.2,"N","No forecast",0.1,2.0000000000000004E-2,5031,"20161006UTD_02","Crew pulled fuse at base of street light. head to be replaced. (special Head) its o/s number 12 Woodhal Wynd. LIS # 9279455."]
[14,"2016-09-25T19:53:22","2016-09-25","19:53:22",-38.373844669999997,145.1212141,1108209,"MTN32","Low voltage AC (<1kV)","Rural Short","Asset failures resulting in asset fire (no grass/vegetation fire) : Other Assets"," - connection box","three phase","Started in or originated from a distribution system","LBRA","LBRA only",0.2,"N","No forecast",0.1,2.0000000000000004E-2,5028,"20160927UTD_01","At Ftn-Flinders Rd Balnarring , replaced 3ph FMB and j/box, rehashed 3 ph U/G to #3080, fire report # 6582, lis # 1108209"]
[15,"2016-10-01T23:20:01","2016-10-01","23:20:01",-38.146384529999999,145.12916519999999,8819096,"LWN35","Low voltage AC (<1kV)","Urban","Asset failures resulting in asset fire (no grass/vegetation fire) : Other Assets"," - switch (any other type)","three phase","Started in or originated from a distribution system","LBRA","LBRA only",0.2,"N","No forecast",0.1,2.0000000000000004E-2,5033,"20161007UTD_02","Krone switch burntout. replaced. LIS# 8819096"]
[16,"2016-10-02T12:06:08","2016-10-02","12:06:08",-37.948609150000003,145.04223529999999,1819291,"CM 25","Low voltage AC (<1kV)","Urban","Asset failures resulting in asset fire (no grass/vegetation fire) : Other Assets"," - connection box","single phase","Started in or originated from a distribution system","LBRA","LBRA only",0.2,"N","No forecast",0.1,2.0000000000000004E-2,5052,"20161026UTD_02","Poles appear to have fire damage, removed hanging j/box at lis #  1819291."]
[17,"2016-10-02T15:42:19","2016-10-02","15:42:19",-37.850699730000002,145.043454,2311940,"K  03","Low voltage AC (<1kV)","Urban","Asset failures resulting in grass/vegetation fire : Other Assets"," - overhead conductor (bare; all aluminium conductor)","three phase","Started in or originated from a distribution system","LBRA","LBRA only",0.2,"N","No forecast",0.1,2.0000000000000004E-2,5032,"20161007UTD_01","LV assets were clashing due to high winds, LV spreader fitted to prevent clashing, no follow up required, LIS 2311940"]
[18,"2016-10-10T03:48:22","2016-10-10","03:48:22",-38.134642110000001,145.22843409999999,9657245,"LWN21","22kV AC","Rural Short","Asset failures resulting in asset fire (no grass/vegetation fire) : Oil-filled plant fire"," - capacity balancing units","three phase","Started in or originated from a distribution system","HBRA","HBRA only",1,"N","No forecast",0.1,0.1,5068,"20161108UTD_01","CAP DNG-HASTINGS CRANBOURNE failed and caught fire. Fire brigade called to extinguish pole.  Lis # 9657245"]
[19,"2016-10-11T16:30:14","2016-10-11","16:30:14",-37.909458870000002,145.2344655,8808792,"FGY31","Low voltage AC (<1kV)","Urban","Asset failures resulting in asset fire (no grass/vegetation fire) : Other Assets"," - connection box","three phase","Started in or originated from a distribution system","LBRA","LBRA only",0.2,"N","No forecast",0.1,2.0000000000000004E-2,5040,"20161014UTD_01","Replace 3ph FMB which had caught fire on Lis # 8808792."]
[20,"2016-10-15T14:16:24","2016-10-15","14:16:24",-38.216007169999997,145.1240032,1122093,"MTN22","22kV AC","Rural Short","Asset failures resulting in grass/vegetation fire : Other Assets"," - overhead conductor (ABC)","three phase","Started in or originated from a distribution system","HBRA","HBRA only",1,"N","No forecast",0.1,0.1,5046,"20161019UTD_01","HV ABC cable down from Switch pole LIS #1122093, eramosa rd west/moorooduc - Evidence of grass fire 2m x 6m area opp on road reserve - fire out on arrival"]
[21,"2016-10-22T17:45:12","2016-10-22","17:45:12",-37.921728709999996,145.00544160000001,1804512,"NB 12","11kV AC","Urban","Grass/vegetation fires from assets (non-asset failures) : Fire starts in grass/vegetation resulting from trees contacting network assets"," - overhead conductor (bare; all aluminium conductor)","three phase","Started by any tree, or part of a tree, falling upon or coming into contact with a distribution system","LBRA","LBRA only",0.2,"N","No forecast",0.1,2.0000000000000004E-2,5078,"20161116UTD_01","Crew isolated the O/Head so as to remove tree branch from the Conductor at pole Lis#1804512. Branch came from private tree at # 733   Hampton St."]
[22,"2016-10-22T21:51:48","2016-10-22","21:51:48",-37.954476659999997,145.02300159999999,1822972,"SR 12","11kV AC","Urban","Asset failures resulting in asset fire (no grass/vegetation fire) : Pole and cross arm fire (including ‘smouldering’ or ‘smoke’)"," - insulators","three phase","Started in or originated from a distribution system","LBRA","LBRA only",0.2,"N","No forecast",0.1,2.0000000000000004E-2,5059,"20161031UTD_03","Crew found sub pole Lis#1822972, damaged by pole fire. Centre Phase Disc eye bolt and Xarm King bolt burned out and pole requiring replacement. "]
[23,"2016-10-28T06:03:39","2016-10-28","06:03:39",-38.050086790000002,145.21677940000001,9953514,"DVY34","Low voltage AC (<1kV)","Urban","Asset failures resulting in asset fire (no grass/vegetation fire) : Other Assets"," - lamps (major road)","single phase","Started in or originated from a distribution system","HBRA","HBRA only",1,"N","No forecast",0.1,0.1,5061,"20161031UTD_05","As per mfb 150 HPS Lantern has caught fire, LIS #9953514"]
[24,"2016-11-03T10:03:00","2016-11-03","10:03:00",-38.362778859999999,145.07444939999999,1107312,"MTN32","22kV AC","Rural Short","Asset failures resulting in asset fire (no grass/vegetation fire) : Other Assets"," - overhead conductor (ABC)","three phase","Started in or originated from a distribution system","HBRA","HBRA only",1,"N","Low-moderate",0.2,0.2,5067,"20161104UTD_02","Linesman witnessed flame on LIS# 1107312 . The fire started on restoration of supply from a planned shutdown on the connection to the HV droppers which the linesman suspects were disturbed during the works."]
[25,"2016-11-04T16:37:56","2016-11-04","16:37:56",-37.796940460000002,145.16981989999999,7066298,"NW 23","22kV AC","Urban","Asset failures resulting in grass/vegetation fire : Other Assets"," - overhead conductor (bare; all aluminium conductor)","three phase","Started in or originated from a distribution system","LBRA","LBRA only",0.2,"N","High",0.5,0.1,5070,"20161108UTD_02","Blue phase tee off conductor contacted the red phase through line because of sloose hardware.Burnt grass 5cm x1.5 mtrs long on naturestrip o/s cnr Clems Rd & Tunstall Rd Donvale. LIS# 7066298"]
[26,"2016-11-06T02:58:14","2016-11-06","02:58:14",-37.934710199999998,145.04960349999999,1824862,"HTS-MR HTS - SR","66kV AC","Urban","Asset failures resulting in asset fire (no grass/vegetation fire) : Pole and cross arm fire (including ‘smouldering’ or ‘smoke’)"," - insulators","three phase","Started in or originated from a distribution system","LBRA","LBRA only",0.2,"N","Low-moderate",0.2,4.0000000000000008E-2,5072,"20161109UTD_03","Address is actually 589 South Rd, LIS 1824862 66KV Pole to be replaced burnt thru. "]
[27,"2016-11-06T06:02:02","2016-11-06","06:02:02",-38.133240919999999,145.12774039999999,3308414,"FTN21","22kV AC","Urban","Asset failures resulting in asset fire (no grass/vegetation fire) : Pole and cross arm fire (including ‘smouldering’ or ‘smoke’)"," - insulators","three phase","Started in or originated from a distribution system","LBRA","LBRA only",0.2,"N","Low-moderate",0.2,4.0000000000000008E-2,5073,"20161111UTD_01","Broken cross arm at NEW TOOYAL S/S. LIS 3308414. Crew confirmed xarm fire caused by tracking at xarm strap. replaced xarm, fuse units and HV droppers. fire report 00083"]
[28,"2016-11-07T07:28:36","2016-11-07","07:28:36",-38.240721129999997,145.02981209999999,1102056,"MTN31","22kV AC","Urban","Asset failures resulting in asset fire (no grass/vegetation fire) : Pole and cross arm fire (including ‘smouldering’ or ‘smoke’)"," - insulators","three phase","Started in or originated from a distribution system","LBRA","LBRA only",0.2,"N","High",0.5,0.1,5075,"20161114UTD_02","HV termination x-arm burnt through at x-arm strap bolt at FOOTWAY ESPLANADE S/S. LIS 1102056. Arm replaced under access permit. "]
[29,"2016-11-07T22:30:34","2016-11-07","22:30:34",-37.895419820000001,145.0582947,2321820,"OR 25","Low voltage AC (<1kV)","Urban","Asset failures resulting in asset fire (no grass/vegetation fire) : Other Assets"," - connection box","single phase","Started in or originated from a distribution system","LBRA","LBRA only",0.2,"N","High",0.5,0.1,5079,"20161116UTD_02","Fuse base for unit 1 had melted/on fire when crews arrived - fire report created by crew - replaced 2 x 100a fuse bases at meterpanle for unit 1 and 2 - tested ande cofiremd supply restored to both units. LIS 2321820"]
[30,"2016-11-17T05:54:52","2016-11-17","05:54:52",-37.970917780000001,145.1754971,618397,"NP 25","22kV AC","Urban","Asset failures resulting in asset fire (no grass/vegetation fire) : Oil-filled plant fire"," - capacity balancing units","three phase","Started in or originated from a distribution system","LBRA","LBRA only",0.2,"N","High",0.5,0.1,5083,"20161121UTD_01","Cap bank blown up on pole - no fire damage to pole - centre phase HV dropper burnt off at the Vac Switch. LIS 0618397"]
[31,"2016-11-22T11:05:03","2016-11-22","11:05:03",-38.129590129999997,145.12993399999999,3308361,"FTN21","Low voltage AC (<1kV)","Urban","Asset failures resulting in asset fire (no grass/vegetation fire) : Other Assets"," - connection box","three phase","Started in or originated from a distribution system","LBRA","LBRA only",0.2,"N","Low-moderate",0.2,4.0000000000000008E-2,5085,"20161124UTD_01","Replaced 3 ph FMB on lis # 3308361, cause overloaded, Fire Report # 01871, feeding FTN 4x4 and Light Commercial, tested and left on."]
[32,"2016-11-22T12:20:48","2016-11-22","12:20:48",-38.372090110000002,144.8873212,1311762,"RBD11","22kV AC","Urban","Grass/vegetation fires from assets (non-asset failures) : Fire starts in grass/vegetation resulting from trees contacting network assets"," - overhead conductor (bare; all aluminium conductor)","three phase","Started by any tree, or part of a tree, falling upon or coming into contact with a distribution system","LBRA","LBRA only",0.2,"N","Low-moderate",0.2,4.0000000000000008E-2,5086,"20161201UTD_01","Tree in nature strip on HV O/H in Allambi Crescent outside #8 adjacent to LIS# 1311762. No damage to assets. Tree was cut back by crew and supply restored from SCADA."]
[33,"2016-12-02T11:39:00","2016-12-02","11:39:00",-38.103395419999998,145.127983,3305954,"CRM33","Low voltage AC (<1kV)","Urban","Asset failures resulting in asset fire (no grass/vegetation fire) : Other Assets"," - connector / termination","three phase","Started in or originated from a distribution system","LBRA","LBRA only",0.2,"N","Low-moderate",0.2,4.0000000000000008E-2,5098,"20161214UTD_02","LIS - 3305954 LV bundles terminat at pole, services IPC have caught fire, no fire at ground level. "]
[34,"2016-12-03T09:05:00","2016-12-03","09:05:00",-38.222501899999997,145.24493849999999,9866573,"HGS33","22kV AC","Rural Short","Asset failures resulting in grass/vegetation fire : Other Assets"," - overhead conductor (bare; steel)","three phase","Started in or originated from a distribution system","HBRA","HBRA only",{"$f":"IF(P72=\"\",\"\",IF(P72=\"LBRA only\",0.2,IF(P72=\"HBRA only\",1,IF(P72=\"within electric line construction area\",19.8,IF(P72=\"within area delineated on plan LEGL./16-354\",4.6,\"\")))))","v":1},"N","Low-moderate",0.2,{"$f":"IF(OR(Q72=\"\",T72=\"\"),\"\",IF(AND(P72=\"within electric line construction area\",S72=\"No forecast\"),1,Q72*T72))","v":0.2},5100,"20161221UTD_01","Conductor down - still sparking when crews arrived, burn marks on ground, no other grass ignition- Conductor on deck in the bay west of spur fuses (Lis 9866573) has burnt through splice. "]
[35,"2016-12-08T16:32:04","2016-12-08","16:32:04",-38.024235509999997,145.10015630000001,3302312,"MC 01","22kV AC","Urban","Asset failures resulting in asset fire (no grass/vegetation fire) : Other Assets"," - insulator tie wires / connections","three phase","Started by any other thing forming part of or coming into contact with a distribution system","LBRA","LBRA only",0.2,"N","High",0.5,0.1,5107,"20161220UTD_01","Suspect: car hit pole at a prior date . HV ties broken , Conductor touching pole cap, Fire at LV king bolt. LIS#3302312, Pole replaced."]
[36,"2016-12-09T08:56:00","2016-12-09","08:56:00",-37.95809904,145.14447999999999,613176,"SS 13","22kV AC","Urban","Asset failures resulting in asset fire (no grass/vegetation fire) : Pole and cross arm fire (including ‘smouldering’ or ‘smoke’)"," - insulators","three phase","Started in or originated from a distribution system","LBRA","LBRA only",0.2,"N","Low-moderate",0.2,4.0000000000000008E-2,5108,"20161220UTD_02","Pole fire on LIS # 0613176. HV LV tee off . Burnt at the arm strap for the HV tee xarm and burnt the LV inter. "]
[37,"2016-12-12T11:18:16","2016-12-12","11:18:16",-37.86346872,145.08055139999999,2300413,"EM 05","Low voltage AC (<1kV)","Urban","Asset failures resulting in asset fire (no grass/vegetation fire) : Other Assets"," - connection box","three phase","Started in or originated from a distribution system","LBRA","LBRA only",0.2,"N","High",0.5,0.1,5142,"20170117UTD_04","3 phase fmb on pole LIS 2300413 - likely loose connection"]
[38,"2016-12-18T13:29:29","2016-12-18","13:29:29",-37.987437219999997,145.07043189999999,1809060,"M  35","11kV AC","Urban","Grass/vegetation fires from assets (non-asset failures) : Fire starts in grass/vegetation resulting from other causes (vehicle strikes, vandalism etc)"," - connector / termination","three phase","Started by any other thing forming part of or coming into contact with a distribution system","LBRA","LBRA only",0.2,"N","Low-moderate",0.2,4.0000000000000008E-2,5113,"20161222UTD_02","Customer reports of balloons into O/H line and this likely cause a conductor to fail due to wrappon burning  and ampact connector failing at pole LIS 1809060. Conductor down at pole LIS1809059 (hv conductor started small grass fire) "]
[39,"2016-12-20T08:42:21","2016-12-20","08:42:21",-37.916809970000003,144.98925460000001,1805954,"MR 32","11kV AC","Urban","Asset failures resulting in asset fire (no grass/vegetation fire) : Pole and cross arm fire (including ‘smouldering’ or ‘smoke’)"," - insulators","three phase","Started in or originated from a distribution system","LBRA","LBRA only",0.2,"Y","High",0.5,0.1,5117,"20161228UTD_02","HV x-arm burnt through and HV conductor resting on LV x-arm. LIS 18059954, HV xarm replaced due to fire damage appears to have been caused by tracking."]
[40,"2016-12-20T09:38:00","2016-12-20","09:38:00",-37.987949069999999,145.1990572,634920,"KBH31","22kV AC","Urban","Asset failures resulting in asset fire (no grass/vegetation fire) : Pole and cross arm fire (including ‘smouldering’ or ‘smoke’)"," - insulators","three phase","Started in or originated from a distribution system","LBRA","LBRA only",0.2,"Y","High",0.5,0.1,5118,"20161228UTD_03","Downer spotter confirmed pole fire at LIS#0634920 BENNET N40 VEREY S/S. Crew replaced pole and x-arms in area "]
[41,"2016-12-24T03:18:31","2016-12-24","03:18:31",-37.886356059999997,145.14181880000001,602729,"GW 03","22kV AC","Urban","Asset failures resulting in asset fire (no grass/vegetation fire) : Other Assets"," - dropper / bridge","three phase","Started by any person, bird, reptile or other animal coming into contact with a distribution system","LBRA","LBRA only",0.2,"Y","High",0.5,0.1,5122,"20161229UTD_01","Possum CAUSED FLASHOVER AT Pole tee to Coolarn Waverley S/S, Fire brigade attended, pole badly damaged, section had to be interrupted- pole lis # 0602729 pole HV & LV T-off /inter requires to be replaced 2"]
[42,"2016-12-24T12:07:02","2016-12-24","12:07:02",-38.400713609999997,144.99491839999999,1313961,"DMA23","Low voltage AC (<1kV)","Rural Short","Asset failures resulting in grass/vegetation fire : Other Assets"," - connector / termination","single phase","Started in or originated from a distribution system","HBRA","HBRA only",1,"Y","High",0.5,0.5,5120,"20161228UTD_04","lis: 1313961 - replaced blue phs ipc clamp for u/g supply - all ok now. - small grass fire - approx 1 sq meter at base of pole"]
[43,"2016-12-28T12:59:36","2016-12-28","12:59:36",-37.966594499999999,145.0808443,1813390,"HT 01","22kV AC","Urban","Asset failures resulting in asset fire (no grass/vegetation fire) : Pole and cross arm fire (including ‘smouldering’ or ‘smoke’)"," - insulators","three phase","Started in or originated from a distribution system","LBRA","LBRA only",0.2,"Y","Very high",1,0.2,5136,"20170113UTD_01","LIS - 1813390 HV termination x-arm to be replaced. PM#1000574381 repairs carried out"]
[44,"2017-01-04T22:12:00","2017-01-04","22:12:00",-37.88732976,145.0003921,2308669,"EW 03","11kV AC","Urban","Grass/vegetation fires from assets (non-asset failures) : Fire starts in grass/vegetation resulting from animal contact with network assets"," - dropper / bridge","three phase","Started by any person, bird, reptile or other animal coming into contact with a distribution system","LBRA","LBRA only",0.2,"Y","High",0.5,0.1,5161,"20170206UTD_01","Possum at CHP to Nepean-McMillan s/s possum damaged cable head, blew R Ph bridge at HV Tee off in Nepean Hwy cnr of Glendora Ave, Very small patch of grass (approx 3cm sq) had burn mark due to fallout from fuse bridge blowing. "]
[45,"2017-01-05T12:50:21","2017-01-05","12:50:21",-38.376289159999999,144.7886154,8831884,"STO14","Low voltage AC (<1kV)","Urban","Asset failures resulting in asset fire (no grass/vegetation fire) : Other Assets"," - connection box","single phase","Started in or originated from a distribution system","LBRA","LBRA only",0.2,"Y","High",0.5,0.1,5131,"20170109UTD_05","501 AMI mtr caught fire at load tails, replaced mtr fire ign rep - LIS - 8831884"]
[46,"2017-01-18T06:45:47","2017-01-18","06:45:47",-37.79806146,145.16038259999999,7066961,"NW 23","22kV AC","Urban","Asset failures resulting in asset fire (no grass/vegetation fire) : Pole and cross arm fire (including ‘smouldering’ or ‘smoke’)"," - insulators","three phase","Started in or originated from a distribution system","LBRA","LBRA only",0.2,"Y","High",0.5,0.1,5144,"20170119UTD_02","End of Strain Xarm burnt off in Blackburn Rd Cnr Glenview..LIS#7066961. Grey porcelain disc insulators & Brown fog bridging insulators."]
[47,"2017-01-19T13:02:00","2017-01-19","13:02:00",-37.942037759999998,145.121892,611069,"SS 21","Low voltage AC (<1kV)","Urban","Asset failures resulting in asset fire (no grass/vegetation fire) : Other Assets"," - switch (any other type)","three phase","Started in or originated from a distribution system","LBRA","LBRA only",0.2,"Y","High",0.5,0.1,5145,"20170124UTD_01","Repalced burnt out krone box, new 160amp din fuses. cause unknown, krone box was melted. LIS3 0611069"]
[48,"2017-01-20T07:27:17","2017-01-20","07:27:17",-37.947656899999998,145.0742741,1816379,"HT 13","22kV AC","Urban","Asset failures resulting in asset fire (no grass/vegetation fire) : Other Assets"," - connector / termination","three phase","Started by any person, bird, reptile or other animal coming into contact with a distribution system","LBRA","LBRA only",0.2,"Y","High",0.5,0.1,5162,"20170206UTD_02","A Possum caused a Hv fuse to blow bl ph at cap bank blown off lead. LIS 1816379"]
[49,"2017-01-23T10:28:58","2017-01-23","10:28:58",-38.147062009999999,145.1443146,3319689,"LWN24","Low voltage AC (<1kV)","Urban","Asset failures resulting in asset fire (no grass/vegetation fire) : Other Assets"," - connector / termination","single phase","Started in or originated from a distribution system","LBRA","LBRA only",0.2,"Y","High",0.5,0.1,5148,"20170124UTD_02","MFB reported fire on pole top LIS 3319689, located in Ashelgh Ave, just north of Beach St burnt ipc on the blue phase to 95mil o/h service. -"]
[50,"2017-01-23T19:09:41","2017-01-23","19:09:41",-38.043870040000002,145.13393360000001,3306941,"CRM35","Low voltage AC (<1kV)","Urban","Asset failures resulting in grass/vegetation fire : Other Assets"," - connector / termination","single phase","Started in or originated from a distribution system","LBRA","LBRA only",0.2,"Y","High",0.5,0.1,5150,"20170202UTD_01","Pole lis# 3306941 - looks like fire at base of pole - due to possible melted conn on the lv xarm - ampac to be redone - Small fire area about size of bin lid approx 2 sq meters - grass singed no fire when crew arrived "]
[51,"2017-01-24T08:48:06","2017-01-24","08:48:06",-37.944886060000002,145.0715606,1816429,"HT 13","22kV AC","Urban","Asset failures resulting in asset fire (no grass/vegetation fire) : Pole and cross arm fire (including ‘smouldering’ or ‘smoke’)"," - insulators","three phase","Started in or originated from a distribution system","LBRA","LBRA only",0.2,"Y","High",0.5,0.1,5149,"20170124UTD_03","X-arm burnt east of CH8142 requires replacment. lis 1816429.  No other damage or any other fire observed in the vacinity at the time."]
[52,"2017-01-29T03:32:54","2017-01-29","03:32:54",-38.214685729999999,145.11301760000001,8831026,"MTN22","22kV AC","Rural Short","Asset failures resulting in asset fire (no grass/vegetation fire) : Other Assets"," - crossarm (steel)","three phase","Started by any person, bird, reptile or other animal coming into contact with a distribution system","HBRA","HBRA only",1,"Y","Very high",1,1,5159,"20170208UTD_02","A Possum seems to have bridhes between the steel crossarm and to bridging bar on the HV ABC interface igniting a fire on the Raychem coverfuseon the fuse unit at MT0102 LIS#8831026. "]
[53,"2017-01-31T07:02:30","2017-01-31","07:02:30",-37.944227339999998,145.0581277,1823700,"MR 33","Low voltage AC (<1kV)","Urban","Asset failures resulting in asset fire (no grass/vegetation fire) : Other Assets"," - overhead service conductor (residential)","single phase","Started in or originated from a distribution system","LBRA","LBRA only",0.2,"Y","High",0.5,0.1,5160,"20170203UTD_06","ABC service cable leads (150mm) cable caught fire (load)  - passed on to construction crew to replace them.  LIS 1823700"]
[54,"2017-02-01T10:11:35","2017-02-01","10:11:35",-37.916817279999997,145.17124569999999,620680,"MGE22","22kV AC","Urban","Asset failures resulting in asset fire (no grass/vegetation fire) : Pole and cross arm fire (including ‘smouldering’ or ‘smoke’)"," - insulators","three phase","Started in or originated from a distribution system","LBRA","LBRA only",0.2,"Y","High",0.5,0.1,5163,"20170206UTD_03","Change x-arm, LIS 0620680. Pole Fire"]
[55,"2017-02-08T15:09:06","2017-02-08","15:09:06",-37.92658205,145.10259139999999,8804574,"CDA23","Low voltage AC (<1kV)","Urban","Asset failures resulting in asset fire (no grass/vegetation fire) : Other Assets"," - connection box","three phase","Started in or originated from a distribution system","LBRA","LBRA only",0.2,"Y","High",0.5,0.1,5165,"20170209UTD_01","As per mfb fuse box on pole burnt out -- fault crew replaced 3phs FMJB at pole end LIS #8804574."]
[56,"2017-02-08T17:01:00","2017-02-08","17:01:00",-37.977902690000001,145.16597659999999,619181,"NP Z/S","22kV AC","Urban","Asset failures resulting in asset fire (no grass/vegetation fire) : Oil-filled plant fire"," - capacity balancing units","three phase","Started in or originated from a distribution system","LBRA","LBRA only",0.2,"Y","High",0.5,0.1,5166,"20170209UTD_02","Reactor Capacitor Bank failed and caught fire at NP Zone Sub . No cap can ruptured. Closest LIS 0619181. Fire brigade attended site to extinguish. "]
[57,"2017-02-13T09:09:42","2017-02-13","09:09:42",-38.132154249999999,145.124585,3309074,"FTN14","22kV AC","Urban","Asset failures resulting in asset fire (no grass/vegetation fire) : Pole and cross arm fire (including ‘smouldering’ or ‘smoke’)"," - insulators","three phase","Started in or originated from a distribution system","LBRA","LBRA only",0.2,"Y","Low-moderate",0.2,4.0000000000000008E-2,5171,"20170214UTD_02","X arm fire at T pole lis 3309074 Nepean Hwy Allawah ave. CFA in attendance. HV Xarm replaced"]
[58,"2017-02-13T11:34:00","2017-02-13","11:34:00",-37.953204169999999,145.07557370000001,1819881,"HT 11","22kV AC","Urban","Asset failures resulting in grass/vegetation fire : HV Fuse"," - fuse (powder filled)","three phase","Started in or originated from a distribution system","LBRA","LBRA only",0.2,"Y","Low-moderate",0.2,4.0000000000000008E-2,5172,"20170214UTD_03","HV fuse assembly faulted with pieces of porcelain making contact with vehicle, small grass fire started in private porperty around the ground type substation., 3x2m.  Lis 1819881"]
[59,"2017-02-25T09:38:14","2017-02-25","09:38:14",-37.925996779999998,145.21506220000001,618004,"MGE32","Low voltage AC (<1kV)","Urban","Asset failures resulting in asset fire (no grass/vegetation fire) : Other Assets"," - switch (any other type)","three phase","Started in or originated from a distribution system","LBRA","LBRA only",0.2,"Y","High",0.5,0.1,5184,"20170227UTD_01","Burntout krone box on S/S, on west cct and also repl mtr of 95 ABC and installed 3 x 125amp fuses, krone box caught fire, fire report #03966, only krone box damaged by fire, lis 0618004"]
[60,"2017-03-03T17:13:42","2017-03-03","17:13:42",-38.118801990000001,145.14035459999999,3304726,"FTN25","Low voltage AC (<1kV)","Urban","Asset failures resulting in asset fire (no grass/vegetation fire) : Other Assets"," - lamps (minor road)","single phase","Started in or originated from a distribution system","LBRA","LBRA only",0.2,"Y","High",0.5,0.1,5190,"20170306UTD_02","isolated supply to pe cell and watchman light - burnt out - fire ignition report 04562 lis 3304726 - ref to SL to follow - Luke Baxter has taken photos"]
[61,"2017-03-04T15:33:34","2017-03-04","15:33:34",-37.861948869999999,145.13684839999999,600806,"EB 22","Low voltage AC (<1kV)","Urban","Grass/vegetation fires from assets (non-asset failures) : Fire starts in grass/vegetation resulting from trees contacting network assets"," - overhead service conductor (residential)","three phase","Started by any tree, or part of a tree, falling upon or coming into contact with a distribution system","LBRA","LBRA only",0.2,"Y","High",0.5,0.1,5188,"20170306UTD_01","repl 2core service rubbed through by council tree, tree & service caught fire/MFB in attendance, fire out by time crew arrived, LIS 0600806,  fire ignition report #02821"]
[62,"2017-03-05T15:12:00","2017-03-05","15:12:00",-38.422373989999997,144.88688730000001,1312279,"RBD21","Low voltage AC (<1kV)","Rural Short","Asset failures resulting in grass/vegetation fire : Other Assets"," - connection box","single phase","Started in or originated from a distribution system","LBRA","LBRA only",0.2,"Y","Low-moderate",0.2,4.0000000000000008E-2,5189,"20170309UTD_01","Red phase had burnt out at fmb at pole and started small grass fire at base of pole,  due to loose connection, LIS 1312279.  Fre already extinguished by CFA  No damage to pole or other property, only grass at base of pole affected by fire. "]
[63,"2017-03-06T20:27:00","2017-03-06","20:27:00",-37.829482859999999,145.2005466,7031323,"RWT24","Low voltage AC (<1kV)","Urban","Asset failures resulting in asset fire (no grass/vegetation fire) : Other Assets"," - connector / termination","single phase","Started in or originated from a distribution system","LBRA","LBRA only",0.2,"Y","High",0.5,0.1,5191,"20170309UTD_02","Burnt LV lead/connection on white phase, requires replacement. No sign of firestart, no ground burn or assets showing sign of fire damage but MFB advised visible flames when they first arrived on site, firestart report #2704, lis 7031323, "]
[64,"2017-03-09T13:39:15","2017-03-09","13:39:15",-38.052495620000002,145.11644219999999,8817371,"CRM12","Low voltage AC (<1kV)","Urban","Asset failures resulting in asset fire (no grass/vegetation fire) : Other Assets"," - connector / termination","single phase","Started in or originated from a distribution system","LBRA","LBRA only",0.2,"Y","High",0.5,0.1,5196,"20170316UTD_01","White phase ampact has been shorting on LV conductor on lis # 8817371, has dropped molten metal down on vehicles underneath. Fire ignition report 00342, 1 car damaged by melted metal."]
[65,"2017-03-12T11:55:35","2017-03-12","11:55:35",-37.979957689999999,145.11994469999999,608434,"SS 23","22kV AC","Urban","Grass/vegetation fires from assets (non-asset failures) : Fire starts in grass/vegetation resulting from trees contacting network assets"," - overhead conductor (bare; all aluminium conductor)","three phase","Started by any tree, or part of a tree, falling upon or coming into contact with a distribution system","LBRA","LBRA only",0.2,"Y","High",0.5,0.1,5197,"20170317UTD_01","Private tree at 47 Village Drive contacted HV conductors and caught alight briefly"]
[66,"2017-03-15T17:59:18","2017-03-15","17:59:18",-38.378349210000003,144.92534989999999,1311305,"RBD12","Low voltage AC (<1kV)","Rural Short","Asset failures resulting in grass/vegetation fire : Other Assets"," - connector / termination","single phase","Started in or originated from a distribution system","LBRA","LBRA only",{"$f":"IF(P104=\"\",\"\",IF(P104=\"LBRA only\",0.2,IF(P104=\"HBRA only\",1,IF(P104=\"within electric line construction area\",19.8,IF(P104=\"within area delineated on plan LEGL./16-354\",4.6,\"\")))))","v":0.2},"Y","Very high",{"$f":"IF(S104=\"\",\"\",IF(S104=\"No forecast\",0.1,IF(S104=\"Low-moderate\",0.2,IF(S104=\"High\",0.5,IF(S104=\"Very high\",1,IF(S104=\"Severe\",2,IF(S104=\"Extreme\",3.5,5)))))))","v":1},{"$f":"IF(OR(Q104=\"\",T104=\"\"),\"\",IF(AND(P104=\"within electric line construction area\",S104=\"No forecast\"),1,Q104*T104))","v":0.2},5198,"20170317UTD_02","o/s #5 Goolgowie - lis 1311305. Fire ignition on the ground to some trees. fire was out on arrival by CFA. Crew replaced a red ph copper to ally d on the LV from the red ph transformer lead (Murawa Goolgowie s/s ) to the main. "]
[67,"2017-03-20T20:05:55","2017-03-20","20:05:55",-37.938750980000002,145.16277930000001,8805944,"SVW55","Low voltage AC (<1kV)","Urban","Asset failures resulting in asset fire (no grass/vegetation fire) : Other Assets"," - lamps (major road)","single phase","Started in or originated from a distribution system","LBRA",{"$f":"IF(O105=\"LBRA\",\"LBRA only\",\"HBRA only\")","v":"LBRA only"},0.2,"Y","Low-moderate",0.2,4.0000000000000008E-2,5200,"20170322UTD_01","lis # 8805944 - street light pole in ctr medium strip  - MFB on site stated street light head was on fire - crew found and replaced blown 50a fuse restoring supply to all street lights - i) #8805944 - refer new t/o #1025737 to replace street light "]
[68,"2017-03-22T06:44:46","2017-03-22","06:44:46",-37.971633300000001,145.01502489999999,1817406,"BR 13","Low voltage AC (<1kV)","Urban","Asset failures resulting in asset fire (no grass/vegetation fire) : Other Assets"," - overhead service conductor (residential)","single phase","Started in or originated from a distribution system","LBRA","LBRA only",0.2,"Y","Low-moderate",0.2,4.0000000000000008E-2,5207,"20170329UTD_03","replaced 3phs grey twisted service -lis: 1817406 -(fire was at clamp of old service, new style clamp fitted on old grey twisted service which is no-complient) - fire out when crew arrived - no damage to customers premise "]
[69,"2017-03-27T19:10:30","2017-03-27","19:10:30",-38.47773694,145.0238636,1313402,"DMA 23","22kV AC","Rural Short","Asset failures resulting in asset fire (no grass/vegetation fire) : Pole and cross arm fire (including ‘smouldering’ or ‘smoke’)"," - insulators","three phase","Started in or originated from a distribution system","HBRA","HBRA only",1,"N","High",0.5,0.5,5210,"20170330UTD_03","LIS # 1313402 - no fire visible when crew arrived on site, burnt pole top, insulators tracking caused pole to burn at eyebolts on centre phase, top of pole to be cut away and assets lowered, pole OK and does not require replacement -"]
[70,"2017-03-29T15:40:08","2017-03-29","15:40:08",-37.978253940000002,145.039512,1811906,"BR 15","11kV AC","Urban","Grass/vegetation fires from assets (non-asset failures) : Fire starts in grass/vegetation resulting from trees contacting network assets"," - overhead conductor (bare; all aluminium conductor)","three phase","Started by any tree, or part of a tree, falling upon or coming into contact with a distribution system","LBRA","LBRA only",0.2,"N","High",0.5,0.1,5214,"20170403UTD_01","Ref to TO# 1030380, found and cleared private tree branches at #141 Pellatt St, Tree cause a fault current that melted bridges causing a small ground fire  Fire ignition # 05626"]
[71,"2017-04-03T20:10:30","2017-04-03","20:10:30",-38.160910899999998,145.20999879999999,3312792,"LWN23","Low voltage AC (<1kV)","Rural Short","Asset failures resulting in grass/vegetation fire : Other Assets"," - connection box","three phase","Started in or originated from a distribution system","HBRA","HBRA only",1,"N","Low-moderate",0.2,0.2,5215,"20170405UTD_01","Crew replaced a b ph service pole box which was also the tranny isolator. Fire report num is 04564. Whispir sent. LIS 3312792"]
[72,"2017-04-11T12:25:00","2017-04-11","12:25:00",-37.945518730000003,145.0224341,1824943,"SR 24","11kV AC","Urban","Asset failures resulting in asset fire (no grass/vegetation fire) : Pole and cross arm fire (including ‘smouldering’ or ‘smoke’)"," - insulators","three phase","Started in or originated from a distribution system","LBRA","LBRA only",0.2,"N","Low-moderate",0.2,4.0000000000000008E-2,5223,"20170425UTD_04","SR24 FDR exit sw CH1751 failed. Hv isolator failed on footpath failed/broke apart. 11kv tracked onto arm and created hotspot on pole which burnt. replaced 66kv pole, 66 inter arm, 11kv term with hv isolators, replaced all 66kv insulators."]
[73,"2017-04-14T00:23:14","2017-04-14","00:23:14",-37.824978090000002,145.16919139999999,8800163,"NW 21","22kV AC","Urban","Asset failures resulting in asset fire (no grass/vegetation fire) : HV Fuse Failure (including ‘hang-ups’ and ‘candling’)"," - fuse (boric acid)","three phase","Started in or originated from a distribution system","LBRA",{"$f":"IF(O111=\"LBRA\",\"LBRA only\",\"HBRA only\")","v":"LBRA only"},{"$f":"IF(P111=\"\",\"\",IF(P111=\"LBRA only\",0.2,IF(P111=\"HBRA only\",1,IF(P111=\"within electric line construction area\",19.8,IF(P111=\"within area delineated on plan LEGL./16-354\",4.6,\"\")))))","v":0.2},"N","Low-moderate",0.2,{"$f":"IF(OR(Q111=\"\",T111=\"\"),\"\",IF(AND(P111=\"within electric line construction area\",S111=\"No forecast\"),1,Q111*T111))","v":4.0000000000000008E-2},5224,"20170425UTD_05 ","BA Fuse Candled at  BH1074 Joyce St, cnr Central Rd LIS=  8800163"]
[74,"2017-04-25T07:45:39","2017-04-25","07:45:39",-38.015960130000003,145.09368240000001,3302271,"MC 01","Low voltage AC (<1kV)","Urban","Asset failures resulting in asset fire (no grass/vegetation fire) : Other Assets"," - LV pillar","three phase","Started in or originated from a distribution system","LBRA","LBRA only",0.2,"N","Low-moderate",0.2,4.0000000000000008E-2,5226,"20170430UTD_04","UG pillar burnt out at LIS 3302271, Fire start report no# 05281, fire was at pillar only no damage to anything external."]
[75,"2017-05-28T13:37:10","2017-05-28","13:37:10",-37.945978910000001,145.06749970000001,1816401,"HT 06","22kV AC","Urban","Asset failures resulting in grass/vegetation fire : HV Fuse"," - fuse (powder filled)","three phase","Started in or originated from a distribution system","LBRA","LBRA only",0.2,"N","No forecast",0.1,2.0000000000000004E-2,5238,"20170601UTD_01","Rph 31.5 PFF fuse candled and exploded with porcilan over the ground causes scorching of the grass below. No other damage to assets. Crew suspect fuse was already cracked and has finally failed. lis 1816401. Fire reprot 02522."]
[76,"2017-06-13T18:36:02","2017-06-13","18:36:02",-38.012468429999998,145.15722289999999,634631,"KBH34","Low voltage AC (<1kV)","Urban","Asset failures resulting in asset fire (no grass/vegetation fire) : Other Assets"," - overhead conductor (insulated)","single phase","Started in or originated from a distribution system","LBRA","LBRA only",0.2,"N","No forecast",0.1,2.0000000000000004E-2,5246,"20170615UTD_02","lis: 34631 - crew isolated supply at TX Hutton P13 Chapel - caused by short cct on Tx Lv leads - LV leads Krone box etc replaced. "]
[77,"2017-06-25T13:17:49","2017-06-25","13:17:49",-37.973205890000003,145.01425180000001,1817994,"BR 13","Low voltage AC (<1kV)","Urban","Asset failures resulting in asset fire (no grass/vegetation fire) : Other Assets"," - underground service cable (residential)","three phase","Started by any other thing forming part of or coming into contact with a distribution system","LBRA","LBRA only",0.2,"N","No forecast",0.1,2.0000000000000004E-2,5255,"20170721UTD_04","LIS# 1817994 - O/S 278 , as per MFB please check pole. Car crashed into pole has damaged LV u/g conductors and caused fire damage to pole.  lv inter pole fire damage repot @ 05805 "]
[78,"2017-06-30T09:08:49","2017-06-30","09:08:49",-38.105793200000001,145.1874009,8814301,"FTN23","Low voltage AC (<1kV)","Urban","Asset failures resulting in asset fire (no grass/vegetation fire) : Other Assets"," - switch (any other type)","three phase","Started in or originated from a distribution system","LBRA","LBRA only",0.2,"N","No forecast",0.1,2.0000000000000004E-2,5259,"20170721UTD_08","LV chrone box found burnt out at Woodvale-Strathearn S/Stn. S/Stn isolated LV and HV and customers restored via LV //s. krone box has been replaced and 315 amp fuses have been replaced on a all 3 phases lis# 8814301"]

{"sheet":"3. Systems and Audit","index":4,"n_rows":26,"n_cols":5,"rows_kept":26,"cut":false,"hidden":false,"merged":[[25,1,26,4],[3,5,3,6],[4,5,4,6],[5,5,5,6],[6,1,6,4],[9,1,9,4],[14,1,14,4],[10,1,10,4],[13,1,13,4],[12,1,12,4],[11,1,11,4]]}
[null,{"$f":"IF(Cover!C25=\"\",\"[DNSP Name]\", Cover!C25)","v":"United Energy"}]
[null,"F-factor data reporting"]
[null,{"$f":"IF(Cover!C31=\"\",\"[Year]\",Cover!C31)","v":"2016/17"}]
[]
[]
[null,"Instructions:"]
[]
[null,{"$f":"IF(Cover!C25=\"\",\"[DNSP Name] must provide:\", CONCATENATE(Cover!C25,\" must provide:\"))","v":"United Energy must provide:"}]
[]
[null,"Table 4 - Information or reporting systems"]
[null,"   (1) Name of any IT system used to collect fire start data or fault event data - i.e. SCADA system, or fault reporting system"]
[null,"   (2) Whether the fire recording or fault recording process has been audited or complies with a relevant Australian or industry standard - Yes or No"]
[null,"   (3) List any relevant Australian or industry standards that the fire recording or fault recording process complies with"]
[null,"   (4) Whether the data entered into or removed from the IT system has been audited - Yes or No"]
[]
[]
[null,"Table 4: Information or reporting systems"]
[]
[null,"Information or reporting systems","Name","System Audited","Relevant Standards"]
[null,"System 1","Distribution Management System (DMS)","Yes","None"]
[null,"System 2","SCADA","No","None"]
[null,"System 3 ","GIS","Yes","None"]
[null,"System 4"]
[null,"System 5"]
[]
[null,"The SGSPAA Internal Audit function undertakes a programme of work in accordance with the SGSPAA Group Internal Audit Plan. This internal audit activity covers elements of the systems and process used for capturing, recording and maintaining fire start data."]